{"text_format":"1","workbook":"xlsx","n_sheets":5,"sheets":["Examenprogramma","Minor","Niveau-indeling vakken","Printen","Temp Stuff"],"not_rendered":{"charts":0,"images":6,"macros":1,"external_links":0,"defined_names":24,"comments":1,"pivot_tables":0},"unopened":[],"bounds":{"document_bytes":16777216,"sheet_cells":100000,"rows_first":2000,"rows_last":500,"rows_between":2000,"halvings":0,"cell_chars":16384,"cell_head_chars":4096},"cells_cut":0,"cells_raw":0,"read":"whole","date_system":"1900"}

{"sheet":"Examenprogramma","index":0,"n_rows":140,"n_cols":14,"rows_kept":140,"cut":false,"hidden":false,"merged":[[130,4,130,7],[131,4,131,7],[118,4,118,7],[137,2,137,7],[116,1,117,7],[121,4,121,7],[122,4,122,7],[123,4,123,7],[124,4,124,7],[125,4,125,7],[126,4,126,7],[127,4,127,7],[128,4,128,7],[129,4,129,7],[115,1,115,5],[119,4,119,7],[120,4,120,7],[3,1,3,4],[6,2,6,7],[7,2,7,7],[8,2,8,7],[9,2,9,7],[107,1,107,5],[13,1,13,4],[13,5,13,7],[22,1,23,4],[22,5,23,7],[27,1,27,4],[27,5,27,7],[44,1,44,4],[54,1,54,4],[74,1,74,4],[95,1,95,4],[10,2,10,7],[109,4,109,5],[99,1,99,4],[99,5,99,7],[108,6,108,7],[109,6,109,7],[22,9,22,11],[15,9,15,11],[17,9,17,11],[18,9,18,11],[19,9,19,11],[21,9,21,11],[20,9,20,11]]}
[]
[null,"Aanvraag goedkeuring bachelorprogramma Science"]
[null,"Cohorten 2011, 2012, 2013, 2014, 2015, 2016, 2017"]
[]
[null,"Wanneer je het formulier correct hebt ingevuld, mail het dan (in dit format) naar: fnwi.examcies@science.ru.nl"]
[]
[null,"Naam:"]
[null,"Studentnummer: "]
[null,"E-mail:"]
[null,"Telefoon:"]
[null,"Startjaar Studie:"]
[null,"Profiel","Keuzemenu"]
[]
[null,"Verplichte cursussen (21 EC)",null,null,null,"Aanpassingen aan de verplichte ruimte:"]
[null,"Code","Cursus naam","EC","Bijz.","Code","Cursus","EC",null,null,null,null,"Nee",{"$f":"SUMIFS(D16,E16,\"<>N.V.\",H16,\"\")","v":6}]
[null,"NWI-MOL092","Panorama science: Energy",6,"Nee",null,null,null,null,"Vul bij Bijzonderheden in:",null,null,"Vrij",{"$f":"SUMIFS(D17,E17,\"<>N.V.\",H17,\"\")","v":6}]
[null,"NWI-MOL099","Panorama science: Health and food",6,"Nee",null,null,null,null,null,null,null,"N.V.",{"$f":"SUMIFS(D18,E18,\"<>N.V.\",H18,\"\")","v":3}]
[null,"NWI-FCEM02B","Schrijfvaardigheid",3,"Nee",null,null,null,null,"'Vrij'als het om een vrijstelling gaat",null,null,null,{"$f":"SUMIFS(D19,E19,\"<>N.V.\",H19,\"\")","v":3}]
[null,"NWI-FFIL100/101","Inleiding Filosofie en Ethiek",3,"Nee",null,null,null,null,"òf",null,null,null,{"$f":"SUMIFS(D20,E20,\"<>N.V.\",H20,\"\")","v":3}]
[null,"NWI-MOL086","Academische Vorming",3,"Nee",null,null,null,null,"'N.V.' als het om een "]
[null,null,"Totaal:",{"$f":"SUM(Examenprogramma!N15:N19)+SUM(H16:H20)","v":21},null,null,null,null,null,"voor jouw niet verplicht vak gaat"]
[null,null,null,null,null,null,null,null,null,"òf"]
[null,"Kies minor (optioneel):",null,null,null,null,null,null,null,"'Nee' In alle andere gevallen"]
[]
[]
[]
[]
[null,"Minor (15-30 EC)",null,null,null,"Aanpassingen aan de minor:"]
[null,"Code","Cursus naam","EC","Bijz.","Code","Cursus","EC"]
[null,null,null,{"$f":"\"\"","v":""},"Nee",null,null,null,null,null,null,null,null,{"$f":"SUMIFS(D30,E30,\"<>N.V.\",H30,\"\")","v":0}]
[null,null,{"$f":"\"\"","v":""},{"$f":"\"\"","v":""},"Nee",null,null,null,null,null,null,null,null,0]
[null,null,{"$f":"\"\"","v":""},{"$f":"\"\"","v":""},"Nee",null,null,null,null,null,null,null,null,0]
[null,null,{"$f":"\"\"","v":""},{"$f":"\"\"","v":""},"Nee",null,null,null,null,null,null,null,null,0]
[null,null,{"$f":"\"\"","v":""},{"$f":"\"\"","v":""},"Nee",null,null,null,null,null,null,null,null,0]
[null,null,{"$f":"\"\"","v":""},{"$f":"\"\"","v":""},"Nee",null,null,null,null,null,null,null,null,0]
[null,null,{"$f":"\"\"","v":""},{"$f":"\"\"","v":""},"Nee",null,null,null,null,null,null,null,null,0]
[null,null,{"$f":"\"\"","v":""},{"$f":"\"\"","v":""},"Nee",null,null,null,null,null,null,null,null,0]
[null,null,{"$f":"\"\"","v":""},{"$f":"\"\"","v":""},null,null,null,null,null,null,null,null,null,0]
[null,null,{"$f":"\"\"","v":""},{"$f":"\"\"","v":""},null,null,null,null,null,null,null,null,null,0]
[null,"Minor:","Vul hier de naam van je minor in",null,null,null,null,null,null,null,null,null,null,0]
[null,null,"Totaal:",{"$f":"SUM(Examenprogramma!N30:N40)+SUM(H30:H40)","v":0}]
[]
[]
[]
[null,"Niveau 1 cursussen (maximaal 15 EC)"]
[null,"Code","Cursusnaam (klik voor een keuzelijst)","EC","Bijz.","Practicum"]
[null,{"$f":"INDEX(niveau1_cc,MATCH(Examenprogramma!C47,niveau_1,0))","v":""},"Kies een cursus",{"$f":"INDEX(niveau1_ec,MATCH(Examenprogramma!C47,niveau_1,0))","v":""},"Nee",{"$f":"VLOOKUP(B47,prac_niveau_1,4,FALSE)","v":""},null,null,null,null,null,null,null,0]
[null,{"$f":"INDEX(niveau1_cc,MATCH(Examenprogramma!C48,niveau_1,0))","v":""},"Kies een cursus",{"$f":"INDEX(niveau1_ec,MATCH(Examenprogramma!C48,niveau_1,0))","v":""},"Nee",{"$f":"VLOOKUP(B48,prac_niveau_1,4,FALSE)","v":""},null,null,null,null,null,null,null,0]
[null,{"$f":"INDEX(niveau1_cc,MATCH(Examenprogramma!C49,niveau_1,0))","v":""},"Kies een cursus",{"$f":"INDEX(niveau1_ec,MATCH(Examenprogramma!C49,niveau_1,0))","v":""},"Nee","",null,null,null,null,null,null,null,0]
[null,{"$f":"INDEX(niveau1_cc,MATCH(Examenprogramma!C50,niveau_1,0))","v":""},"Kies een cursus",{"$f":"INDEX(niveau1_ec,MATCH(Examenprogramma!C50,niveau_1,0))","v":""},"Nee","",null,null,null,null,null,null,null,0]
[null,{"$f":"INDEX(niveau1_cc,MATCH(Examenprogramma!C51,niveau_1,0))","v":""},"Kies een cursus",{"$f":"INDEX(niveau1_ec,MATCH(Examenprogramma!C51,niveau_1,0))","v":""},"Nee","",null,null,null,null,null,null,null,0]
[null,{"$f":"INDEX(niveau1_cc,MATCH(Examenprogramma!C52,niveau_1,0))","v":""},"Kies een cursus",{"$f":"INDEX(niveau1_ec,MATCH(Examenprogramma!C52,niveau_1,0))","v":""},"Nee","",null,null,null,null,null,null,null,0]
[null,null,"Totaal:",{"$f":"SUM(Examenprogramma!N47:N52)+SUM(H47:H52)","v":0}]
[]
[null,"Niveau 2 cursussen"]
[null,"Code","Cursusnaam (klik voor een keuzelijst)","EC","Bijz.","Practicum"]
[null,{"$f":"INDEX(niveau2_cc,MATCH(Examenprogramma!C57,niveau_2,0))","v":""},"Kies een cursus",{"$f":"INDEX(niveau2_ec,MATCH(Examenprogramma!C57,niveau_2,0))","v":""},"Nee",{"$f":"VLOOKUP(B57,prac_niveau_2,4,FALSE)","v":""},null,null,null,null,null,null,null,0]
[null,{"$f":"INDEX(niveau2_cc,MATCH(Examenprogramma!C58,niveau_2,0))","v":""},"Kies een cursus",{"$f":"INDEX(niveau2_ec,MATCH(Examenprogramma!C58,niveau_2,0))","v":""},"Nee","",null,null,null,null,null,null,null,0]
[null,{"$f":"INDEX(niveau2_cc,MATCH(Examenprogramma!C59,niveau_2,0))","v":""},"Kies een cursus",{"$f":"INDEX(niveau2_ec,MATCH(Examenprogramma!C59,niveau_2,0))","v":""},"Nee","",null,null,null,null,null,null,null,0]
[null,{"$f":"INDEX(niveau2_cc,MATCH(Examenprogramma!C60,niveau_2,0))","v":""},"Kies een cursus",{"$f":"INDEX(niveau2_ec,MATCH(Examenprogramma!C60,niveau_2,0))","v":""},"Nee","",null,null,null,null,null,null,null,0]
[null,{"$f":"INDEX(niveau2_cc,MATCH(Examenprogramma!C61,niveau_2,0))","v":""},"Kies een cursus",{"$f":"INDEX(niveau2_ec,MATCH(Examenprogramma!C61,niveau_2,0))","v":""},"Nee","",null,null,null,null,null,null,null,0]
[null,{"$f":"INDEX(niveau2_cc,MATCH(Examenprogramma!C62,niveau_2,0))","v":""},"Kies een cursus",{"$f":"INDEX(niveau2_ec,MATCH(Examenprogramma!C62,niveau_2,0))","v":""},"Nee","",null,null,null,null,null,null,null,0]
[null,{"$f":"INDEX(niveau2_cc,MATCH(Examenprogramma!C63,niveau_2,0))","v":""},"Kies een cursus",{"$f":"INDEX(niveau2_ec,MATCH(Examenprogramma!C63,niveau_2,0))","v":""},"Nee","",null,null,null,null,null,null,null,0]
[null,{"$f":"INDEX(niveau2_cc,MATCH(Examenprogramma!C64,niveau_2,0))","v":""},"Kies een cursus",{"$f":"INDEX(niveau2_ec,MATCH(Examenprogramma!C64,niveau_2,0))","v":""},"Nee","",null,null,null,null,null,null,null,0]
[null,{"$f":"INDEX(niveau2_cc,MATCH(Examenprogramma!C65,niveau_2,0))","v":""},"Kies een cursus",{"$f":"INDEX(niveau2_ec,MATCH(Examenprogramma!C65,niveau_2,0))","v":""},"Nee","",null,null,null,null,null,null,null,0]
[null,{"$f":"INDEX(niveau2_cc,MATCH(Examenprogramma!C66,niveau_2,0))","v":""},"Kies een cursus",{"$f":"INDEX(niveau2_ec,MATCH(Examenprogramma!C66,niveau_2,0))","v":""},"Nee","",null,null,null,null,null,null,null,0]
[null,{"$f":"INDEX(niveau2_cc,MATCH(Examenprogramma!C67,niveau_2,0))","v":""},"Kies een cursus",{"$f":"INDEX(niveau2_ec,MATCH(Examenprogramma!C67,niveau_2,0))","v":""},"Nee","",null,null,null,null,null,null,null,0]
[null,{"$f":"INDEX(niveau2_cc,MATCH(Examenprogramma!C68,niveau_2,0))","v":""},"Kies een cursus",{"$f":"INDEX(niveau2_ec,MATCH(Examenprogramma!C68,niveau_2,0))","v":""},"Nee","",null,null,null,null,null,null,null,0]
[null,{"$f":"INDEX(niveau2_cc,MATCH(Examenprogramma!C69,niveau_2,0))","v":""},"Kies een cursus",{"$f":"INDEX(niveau2_ec,MATCH(Examenprogramma!C69,niveau_2,0))","v":""},"Nee","",null,null,null,null,null,null,null,0]
[null,{"$f":"INDEX(niveau2_cc,MATCH(Examenprogramma!C70,niveau_2,0))","v":""},"Kies een cursus",{"$f":"INDEX(niveau2_ec,MATCH(Examenprogramma!C70,niveau_2,0))","v":""},"Nee","",null,null,null,null,null,null,null,0]
[null,{"$f":"INDEX(niveau2_cc,MATCH(Examenprogramma!C71,niveau_2,0))","v":""},"Kies een cursus",{"$f":"INDEX(niveau2_ec,MATCH(Examenprogramma!C71,niveau_2,0))","v":""},"Nee","",null,null,null,null,null,null,null,0]
[null,{"$f":"INDEX(niveau2_cc,MATCH(Examenprogramma!C72,niveau_2,0))","v":""},"Kies een cursus",{"$f":"INDEX(niveau2_ec,MATCH(Examenprogramma!C72,niveau_2,0))","v":""},"Nee","",null,null,null,null,null,null,null,0]
[null,null,"Totaal:",{"$f":"SUM(Examenprogramma!N57:N72)+SUM(H57:H72)","v":0}]
[]
[null,"Niveau 3 cursussen (minstens 30 EC)"]
[null,"Code","Cursusnaam (klik voor een keuzelijst)","EC","Bijz.","Practicum"]
[null,{"$f":"INDEX(niveau3_cc,MATCH(Examenprogramma!C77,niveau_3,0))","v":""},"Kies een cursus",{"$f":"INDEX(niveau3_ec,MATCH(Examenprogramma!C77,niveau_3,0))","v":""},"Nee",{"$f":"VLOOKUP(B77,prac_niveau_3,4,FALSE)","v":""},null,null,null,null,null,null,null,0]
[null,{"$f":"INDEX(niveau3_cc,MATCH(Examenprogramma!C78,niveau_3,0))","v":""},"Kies een cursus",{"$f":"INDEX(niveau3_ec,MATCH(Examenprogramma!C78,niveau_3,0))","v":""},"Nee","",null,null,null,null,null,null,null,0]
[null,{"$f":"INDEX(niveau3_cc,MATCH(Examenprogramma!C79,niveau_3,0))","v":""},"Kies een cursus",{"$f":"INDEX(niveau3_ec,MATCH(Examenprogramma!C79,niveau_3,0))","v":""},"Nee","",null,null,null,null,null,null,null,{"$f":"SUMIFS(D79,E79,\"<>N.V.\",H79,\"\")","v":0}]
[null,{"$f":"INDEX(niveau3_cc,MATCH(Examenprogramma!C80,niveau_3,0))","v":""},"Kies een cursus",{"$f":"INDEX(niveau3_ec,MATCH(Examenprogramma!C80,niveau_3,0))","v":""},"Nee","",null,null,null,null,null,null,null,0]
[null,{"$f":"INDEX(niveau3_cc,MATCH(Examenprogramma!C81,niveau_3,0))","v":""},"Kies een cursus",{"$f":"INDEX(niveau3_ec,MATCH(Examenprogramma!C81,niveau_3,0))","v":""},"Nee","",null,null,null,null,null,null,null,0]
[null,{"$f":"INDEX(niveau3_cc,MATCH(Examenprogramma!C82,niveau_3,0))","v":""},"Kies een cursus",{"$f":"INDEX(niveau3_ec,MATCH(Examenprogramma!C82,niveau_3,0))","v":""},"Nee","",null,null,null,null,null,null,null,0]
[null,{"$f":"INDEX(niveau3_cc,MATCH(Examenprogramma!C83,niveau_3,0))","v":""},"Kies een cursus",{"$f":"INDEX(niveau3_ec,MATCH(Examenprogramma!C83,niveau_3,0))","v":""},"Nee","",null,null,null,null,null,null,null,0]
[null,{"$f":"INDEX(niveau3_cc,MATCH(Examenprogramma!C84,niveau_3,0))","v":""},"Kies een cursus",{"$f":"INDEX(niveau3_ec,MATCH(Examenprogramma!C84,niveau_3,0))","v":""},"Nee","",null,null,null,null,null,null,null,0]
[null,{"$f":"INDEX(niveau3_cc,MATCH(Examenprogramma!C85,niveau_3,0))","v":""},"Kies een cursus",{"$f":"INDEX(niveau3_ec,MATCH(Examenprogramma!C85,niveau_3,0))","v":""},"Nee","",null,null,null,null,null,null,null,0]
[null,{"$f":"INDEX(niveau3_cc,MATCH(Examenprogramma!C86,niveau_3,0))","v":""},"Kies een cursus",{"$f":"INDEX(niveau3_ec,MATCH(Examenprogramma!C86,niveau_3,0))","v":""},"Nee","",null,null,null,null,null,null,null,0]
[null,{"$f":"INDEX(niveau3_cc,MATCH(Examenprogramma!C87,niveau_3,0))","v":""},"Kies een cursus",{"$f":"INDEX(niveau3_ec,MATCH(Examenprogramma!C87,niveau_3,0))","v":""},"Nee","",null,null,null,null,null,null,null,0]
[null,{"$f":"INDEX(niveau3_cc,MATCH(Examenprogramma!C88,niveau_3,0))","v":""},"Kies een cursus",{"$f":"INDEX(niveau3_ec,MATCH(Examenprogramma!C88,niveau_3,0))","v":""},"Nee","",null,null,null,null,null,null,null,0]
[null,{"$f":"INDEX(niveau3_cc,MATCH(Examenprogramma!C89,niveau_3,0))","v":""},"Kies een cursus",{"$f":"INDEX(niveau3_ec,MATCH(Examenprogramma!C89,niveau_3,0))","v":""},"Nee","",null,null,null,null,null,null,null,0]
[null,{"$f":"INDEX(niveau3_cc,MATCH(Examenprogramma!C90,niveau_3,0))","v":""},"Kies een cursus",{"$f":"INDEX(niveau3_ec,MATCH(Examenprogramma!C90,niveau_3,0))","v":""},"Nee","",null,null,null,null,null,null,null,0]
[null,{"$f":"INDEX(niveau3_cc,MATCH(Examenprogramma!C91,niveau_3,0))","v":""},"Kies een cursus",{"$f":"INDEX(niveau3_ec,MATCH(Examenprogramma!C91,niveau_3,0))","v":""},"Nee","",null,null,null,null,null,null,null,0]
[null,{"$f":"INDEX(niveau3_cc,MATCH(Examenprogramma!C92,niveau_3,0))","v":""},"Kies een cursus",{"$f":"INDEX(niveau3_ec,MATCH(Examenprogramma!C92,niveau_3,0))","v":""},"Nee","",null,null,null,null,null,null,null,0]
[null,null,"Totaal:",{"$f":"SUM(Examenprogramma!N77:N92)+SUM(H77:H92)","v":0},null,null,null,null,null,null,null,null,null,{"$f":"SUMIFS(D93,C94,\"<>N.V.\",H93,\"\")","v":0}]
[null,null,"Som practica:",{"$f":"SUM(F77:F92)+SUM(F57:F72)+SUM(F47:F52)","v":0}]
[]
[null,"Check op de practicumeis (Som van de practica is minimaal 1):",null,null,null,{"$f":"IF(SUM(F77:F92)+SUM(F57:F72)+SUM(F47:F52)>0.999,\"Voldaan\",\"NIET voldaan\")","v":"NIET voldaan"}]
[null,null,null,null,null,null,null,null,null,null,null,null,null,0]
[null,null,null,null,null,null,null,null,null,null,null,null,null,0]
[]
[null,"Vrije keuze (6 EC universitaire cursussen)",null,null,null,"Aanpassingen aan de vrije keuze:"]
[null,"Code","Cursusnaam","EC","Bijz.","Code","Cursus","EC"]
[null,null,null,null,"Nee",null,null,null,null,null,null,null,null,{"$f":"SUMIFS(D102,E102,\"<>N.V.\",H102,\"\")","v":0}]
[null,null,null,null,"Nee",null,null,null,null,null,null,null,null,{"$f":"SUMIFS(D103,E103,\"<>N.V.\",H103,\"\")","v":0}]
[null,null,null,null,"Nee",null,null,null,null,null,null,null,null,0]
[null,null,null,null,"Nee",null,null,null,null,null,null,null,null,{"$f":"SUMIFS(D105,E105,\"<>N.V.\",H105,\"\")","v":0}]
[null,null,"Totaal:",{"$f":"SUM(Examenprogramma!N102:N105)+SUM(H102:H105)","v":0}]
[]
[null,"Bachelorstage (NWI-MOL200) (12 EC)"]
[null,"Docent","Afdeling","EC",null,"2e beoordelaar","Anders? (zo jaar waar, en jouw begeleider daar)"]
[]
[null,null,"Totaal:",{"$f":"D110","v":0}]
[]
[]
[null,null,"Totaal:",{"$f":"D21+D41+D53+D106+D111+D93+D73","v":21}]
[]
[null,"Extra-curriculair (bovenop de 120 ec)"]
[null,"Judicium wordt berekend over de nominale (minimale) 120 EC. Extra-curriculaire vakken tellen NIET mee voor het judicium (ze worden wel vermeld op diploma). Alleen voor onderstaande vakken: in bijzondere gevallen kan hiervoor een vrijstellingsverzoek ingediend worden tbv de master."]
[]
[null,"Code","Cursus naam","EC","Opmerkingen"]
[]
[]
[]
[]
[]
[]
[]
[]
[]
[]
[]
[]
[]
[null,null,"Totaal:",{"$f":"SUM(D120:D132)","v":0}]
[]
[]
[null,null,"Absoluut totaal:",{"$f":"SUM(D133,D114)","v":21}]
[]
[null,"OPMERKINGEN:"]
[]
[null,"Wanneer je het formulier correct hebt ingevuld, mail het dan naar: secr.fnwi.examcies@science.ru.nl"]

{"sheet":"Minor","index":1,"n_rows":945,"n_cols":11,"rows_kept":945,"cut":false,"hidden":false,"merged":[]}
[null,"Minoren",null,null,"n"]
[null,"Code","Cursus","EC"]
[false,"Nanoscience",null,null,"Minor 1"]
[{"$f":"COUNTIF(C3:C22,\"<>\"&\"\")+1","v":8},"NWI-NP007B","Speciale Relativiteitstheorie",3,"Nee"]
[31,"NWI-MOL039 ","Fysisch Practicum",6,"Nee"]
[null,"NWI-NP027B","Inleiding Nanowetenschap & Technologie",3,"Nee"]
[null,"NWI-NB044B","Nanofysica",3,"Nee"]
[null,"NWI-NB071B","Structuur der Materie: Atoom en Molecuulfysica",3,"Nee"]
[null,"NWI-NB072B","Structuur der Materie: Vaste Stof Fysica",3,"Nee"]
[null,"NWI-NB029B","Electronica",3,"Nee"]
[]
[]
[]
[]
[]
[]
[]
[]
[]
[]
[]
[]
[false,"Milieuchemie",null,null,"Minor 2"]
[{"$f":"COUNTIF(C23:C42,\"<>\"&\"\")+1","v":8},"NWI-NB046B","Chemie en Fysica van de Atmosfeer",3]
[31,"NWI-MB021B","Geografische Informatiesystemen",6]
[null,"NWI-MOL054","Toxicologie",6]
[null,"NWI-MB024C","HERA (Environmental Risk Assessment)",6]
[null,"NWI-MOL091","Green Chemistry",3]
[null,"NWI-MOL065","Chemometrie",6]
[null,"NWI-BB082B","Keuze: Milieuchemie en Toxicologie",3]
[]
[]
[]
[]
[]
[]
[]
[]
[]
[]
[]
[]
[false,"Educatie - 30 ec",null,null,"Minor 3"]
[{"$f":"COUNTIF(C43:C62,\"<>\"&\"\")+1","v":3},null,"Educatieve Minor",30,"Nee"]
[31]
[]
[]
[]
[]
[]
[]
[]
[]
[null,"Minor:","Educatie"]
[]
[]
[]
[]
[]
[]
[]
[]
[false,"Minor 4",null,null,"Minor 4"]
[{"$f":"COUNTIF(C63:C82,\"<>\"&\"\")+1","v":1}]
[31]
[]
[]
[]
[]
[]
[]
[]
[]
[]
[]
[]
[]
[]
[]
[]
[]
[]
[false,"Minor 5",null,null,"Minor 5"]
[{"$f":"COUNTIF(C83:C102,\"<>\"&\"\")+1","v":1}]
[31]
[]
[]
[]
[]
[]
[]
[]
[]
[]
[]
[]
[]
[]
[]
[]
[]
[]
[false,"Global Challenges, Science and Entrepreneurship - 18 ec",null,null,"Minor 6"]
[{"$f":"COUNTIF(C103:C122,\"<>\"&\"\")+1","v":8},"MAN-MOC006","Policy, entrepeneurship and sust. Innov.",3,"Nee"]
[31,"MAN-BKV55","Duurzaam ondernemen",6,"Nee"]
[null,null,"Drie van de volgende vijf vakken:",null,null,null,null,"Kies..","",""]
[null,{"$f":"VLOOKUP(C107,gcse_lijst,2,FALSE)","v":""},"Kies..",{"$f":"VLOOKUP(C107,gcse_lijst,3,FALSE)","v":""},"Nee",null,null,"Climate change: science & policy","NWI-GCSE001",3]
[null,{"$f":"VLOOKUP(C108,gcse_lijst,2,FALSE)","v":""},"Kies..",{"$f":"VLOOKUP(C108,gcse_lijst,3,FALSE)","v":""},"Nee",null,null,"Energy & sustainability","NWI-GCSE002",3]
[null,{"$f":"VLOOKUP(C109,gcse_lijst,2,FALSE)","v":""},"Kies..",{"$f":"VLOOKUP(C109,gcse_lijst,3,FALSE)","v":""},"Nee",null,null,"Value of water","NWI-GCSE003",3]
[null,null,null,null,null,null,null,"Biodiversity & ecosystems","NWI-GCSE004",3]
[null,null,null,null,null,null,null,"Networked society","NWI-GCSE005",3]
[null,null,null,null,null,null,null,{"$f":"\"\"","v":""},"","",""]
[]
[null,"Minor:","GCSE"]
[]
[]
[]
[]
[]
[]
[]
[]
[false,"Minor 7",null,null,"Minor 7"]
[{"$f":"COUNTIF(C123:C142,\"<>\"&\"\")+1","v":1}]
[36]
[]
[]
[]
[]
[]
[]
[]
[]
[]
[]
[]
[]
[]
[]
[]
[]
[]
[false,"Informatica",null,null,"Minor 8"]
[{"$f":"COUNTIF(C143:C162,\"<>\"&\"\")+1","v":6},"NWI-IPC014","Imperatief Programmeren 1",3]
[31,"NWI-IPC015","Imperatief Programmeren 2",3]
[null,"OF NWI-IBC027","Algoritmen en Datastructuren",6]
[]
[null,"NWI-IPC021","Security",6]
[null,"NWI-IPC002","Operating Systems",3]
[]
[]
[]
[]
[]
[]
[]
[]
[]
[]
[]
[]
[]
[false,"Informatiekunde - 15 ec",null,null,"Minor 9"]
[{"$f":"COUNTIF(C163:C182,\"<>\"&\"\")+1","v":6},"NWI-IPC019","Modelleren",3]
[50,"NWI-IPC021","Security ",6]
[null,"NWI-IBK008 ","Architectuur Digitale Wereld ",3]
[null,"NWI-IBC019","Operating Systems",3]
[null,"NWI-IBC020","Informatiesystemen",3]
[]
[]
[]
[]
[]
[]
[]
[]
[]
[]
[]
[]
[]
[]
[true,"Minor 10",null,null,"Minor 10"]
[{"$f":"COUNTIF(C183:C202,\"<>\"&\"\")+1","v":1}]
[40]
[]
[]
[]
[]
[]
[]
[]
[]
[]
[]
[]
[]
[]
[]
[]
[]
[]
[false,"Minor 11",null,null,"Minor 11"]
[{"$f":"COUNTIF(C203:C222,\"<>\"&\"\")+1","v":1}]
[45]
[]
[]
[]
[]
[]
[]
[]
[]
[]
[]
[]
[]
[]
[]
[]
[]
[]
[false,"Minor 12",null,null,"Minor 12"]
[{"$f":"COUNTIF(C223:C242,\"<>\"&\"\")+1","v":1}]
[]
[]
[]
[]
[]
[]
[]
[]
[]
[]
[]
[]
[]
[]
[]
[]
[]
[]
[false,"Minor 13",null,null,"Minor 13"]
[{"$f":"COUNTIF(C243:C262,\"<>\"&\"\")+1","v":1}]
[79]
[]
[]
[]
[]
[]
[]
[]
[]
[]
[]
[]
[]
[]
[]
[]
[]
[]
[false,"Minor 14",null,null,"Minor 14"]
[{"$f":"COUNTIF(C263:C282,\"<>\"&\"\")+1","v":1}]
[38]
[]
[]
[]
[]
[]
[]
[]
[]
[]
[]
[]
[]
[]
[]
[]
[]
[]
[false,"Anders - 15 ec - 30 ec","Handmatig invullen. Vermeld de naam van de minor!",null,"Minor 15"]
[{"$f":"COUNTIF(C283:C302,\"<>\"&\"\")+1","v":13},null,{"$f":"\"\"","v":""},{"$f":"\"\"","v":""},"Nee"]
[38,null,{"$f":"\"\"","v":""},{"$f":"\"\"","v":""},"Nee"]
[null,null,{"$f":"\"\"","v":""},{"$f":"\"\"","v":""},"Nee"]
[null,null,{"$f":"\"\"","v":""},{"$f":"\"\"","v":""},"Nee"]
[null,null,{"$f":"\"\"","v":""},{"$f":"\"\"","v":""},"Nee"]
[null,null,{"$f":"\"\"","v":""},{"$f":"\"\"","v":""},"Nee"]
[null,null,{"$f":"\"\"","v":""},{"$f":"\"\"","v":""},"Nee"]
[null,null,{"$f":"\"\"","v":""},{"$f":"\"\"","v":""},"Nee"]
[null,null,{"$f":"\"\"","v":""},{"$f":"\"\"","v":""}]
[null,null,{"$f":"\"\"","v":""},{"$f":"\"\"","v":""}]
[null,"Minor:","Vul hier de naam van je minor in"]
[]
[]
[]
[]
[]
[]
[]
[]
[false,null,null,null,"Minor 16"]
[{"$f":"COUNTIF(C303:C322,\"<>\"&\"\")+1","v":1}]
[62]
[]
[]
[]
[]
[]
[]
[]
[]
[]
[]
[]
[]
[]
[]
[]
[]
[]
[false,null,null,null,"Minor 17"]
[{"$f":"COUNTIF(C323:C342,\"<>\"&\"\")+1","v":1}]
[47]
[]
[]
[]
[]
[]
[]
[]
[]
[]
[]
[]
[]
[]
[]
[]
[]
[]
[false,null,null,null,"Minor 18"]
[1]
[48]
[]
[]
[]
[]
[]
[]
[]
[]
[]
[]
[]
[]
[]
[]
[]
[]
[]
[false,null,null,null,"Minor 19"]
[1]
[49]
[]
[]
[]
[]
[]
[]
[]
[]
[]
[]
[]
[]
[]
[]
[]
[]
[]
[false,null,null,null,"Minor 20"]
[1]
[50]
[]
[]
[]
[]
[]
[]
[]
[]
[]
[]
[]
[]
[]
[]
[]
[]
[]
[false,null,null,null,"Minor 21"]
[{"$f":"COUNTIF(C403:C422,\"<>\"&\"\")+1","v":1}]
[51]
[]
[]
[]
[]
[]
[]
[]
[]
[]
[]
[]
[]
[]
[]
[]
[]
[]
[false,null,null,null,"Minor 22"]
[1]
[52]
[]
[]
[]
[]
[]
[]
[]
[]
[]
[]
[]
[]
[]
[]
[]
[]
[]
[false,null,null,null,"Minor 23"]
[1]
[53]
[]
[]
[]
[]
[]
[]
[]
[]
[]
[]
[]
[]
[]
[]
[]
[]
[]
[false,null,null,null,"Minor 24"]
[1]
[54]
[]
[]
[]
[]
[]
[]
[]
[]
[]
[]
[]
[]
[]
[]
[]
[]
[]
[false,null,null,null,"Minor 25"]
[{"$f":"COUNTIF(C483:C502,\"<>\"&\"\")+1","v":1}]
[55]
[]
[]
[]
[]
[]
[]
[]
[]
[]
[]
[]
[]
[]
[]
[]
[]
[]
[false,null,null,null,"Minor 26"]
[1]
[56]
[]
[]
[]
[]
[]
[]
[]
[]
[]
[]
[]
[]
[]
[]
[]
[]
[]
[false,null,null,null,"Minor 27"]
[1]
[57]
[]
[]
[]
[]
[]
[]
[]
[]
[]
[]
[]
[]
[]
[]
[]
[]
[]
[false,null,null,null,"Minor 28"]
[1]
[58]
[]
[]
[]
[]
[]
[]
[]
[]
[]
[]
[]
[]
[]
[]
[]
[]
[]
[false,null,null,null,"Minor 29"]
[{"$f":"COUNTIF(C563:C582,\"<>\"&\"\")+1","v":1}]
[59]
[]
[]
[]
[]
[]
[]
[]
[]
[]
[]
[]
[]
[]
[]
[]
[]
[]
[false,null,null,null,"Minor 30"]
[1]
[60]
[]
[]
[]
[]
[]
[]
[]
[]
[]
[]
[]
[]
[]
[]
[]
[]
[]
[false,null,null,null,"Minor 31"]
[1]
[61]
[]
[]
[]
[]
[]
[]
[]
[]
[]
[]
[]
[]
[]
[]
[]
[]
[]
[false,null,null,null,"Minor 32"]
[1]
[62]
[]
[]
[]
[]
[]
[]
[]
[]
[]
[]
[]
[]
[]
[]
[]
[]
[]
[false,null,null,null,"Minor 33"]
[{"$f":"COUNTIF(C643:C662,\"<>\"&\"\")+1","v":1}]
[63]
[]
[]
[]
[]
[]
[]
[]
[]
[]
[]
[]
[]
[]
[]
[]
[]
[]
[false,null,null,null,"Minor 34"]
[1]
[64]
[]
[]
[]
[]
[]
[]
[]
[]
[]
[]
[]
[]
[]
[]
[]
[]
[]
[false,null,null,null,"Minor 35"]
[1]
[65]
[]
[]
[]
[]
[]
[]
[]
[]
[]
[]
[]
[]
[]
[]
[]
[]
[]
[false,null,null,null,"Minor 36"]
[1]
[66]
[]
[]
[]
[]
[]
[]
[]
[]
[]
[]
[]
[]
[]
[]
[]
[]
[]
[false,null,null,null,"Minor 37"]
[{"$f":"COUNTIF(C723:C742,\"<>\"&\"\")+1","v":1}]
[67]
[]
[]
[]
[]
[]
[]
[]
[]
[]
[]
[]
[]
[]
[]
[]
[]
[]
[false,null,null,null,"Minor 38"]
[1]
[68]
[]
[]
[]
[]
[]
[]
[]
[]
[]
[]
[]
[]
[]
[]
[]
[]
[]
[false,null,null,null,"Minor 39"]
[1]
[69]
[]
[]
[]
[]
[]
[]
[]
[]
[]
[]
[]
[]
[]
[]
[]
[]
[]
[false,null,null,null,"Minor 40"]
[1]
[70]
[]
[]
[]
[]
[]
[]
[]
[]
[]
[]
[]
[]
[]
[]
[]
[]
[]
[false,null,null,null,"Minor 41"]
[{"$f":"COUNTIF(C803:C822,\"<>\"&\"\")+1","v":1}]
[71]
[]
[]
[]
[]
[]
[]
[]
[]
[]
[]
[]
[]
[]
[]
[]
[]
[]
[false,null,null,null,"Minor 42"]
[1]
[72]
[]
[]
[]
[]
[]
[]
[]
[]
[]
[]
[]
[]
[]
[]
[]
[]
[]
[false,null,null,null,"Minor 43"]
[1]
[73]
[]
[]
[]
[]
[]
[]
[]
[]
[]
[]
[]
[]
[]
[]
[]
[]
[]
[false,null,null,null,"Minor 44"]
[1]
[74]
[]
[]
[]
[]
[]
[]
[]
[]
[]
[]
[]
[]
[]
[]
[]
[]
[]
[false,null,null,null,"Minor 45"]
[{"$f":"COUNTIF(C883:C902,\"<>\"&\"\")+1","v":1}]
[75]
[]
[]
[]
[]
[]
[]
[]
[]
[]
[]
[]
[]
[]
[]
[]
[]
[]
[false,null,null,null,"Minor 46"]
[1]
[76]
[]
[]
[]
[]
[]
[]
[]
[]
[]
[]
[]
[]
[]
[]
[]
[]
[]
[false,null,null,null,"Minor 47"]
[1]
[77]
[]
[]
[]
[]
[]
[]
[]
[]
[]
[]
[]
[]
[]
[]
[]
[]
[]
[false,null,null,null,"Minor 48"]
[1]
[78]

{"sheet":"Niveau-indeling vakken","index":2,"n_rows":158,"n_cols":23,"rows_kept":158,"cut":false,"hidden":false,"merged":[]}
["","","NIVEAU 1","",null,null,"","","NIVEAU 2","","","","","","NIVEAU 3","","","",null,null,null,null,"PROFIELEN"]
["",{"$f":"\"\"","v":""},"Kies een cursus","Nee",null,null,"",{"$f":"\"\"","v":""},"Kies een cursus","Nee",null,null,"",{"$f":"\"\"","v":""},"Kies een cursus","Nee",null,"Kies: stageafdeling",null,null,null,null,"Keuzemenu"]
["","","","",null,null,null,"","","",null,null,"","","","",null,null,null,null,null,null,"Chemisch / Biologisch"]
[null,"EC","BIOLOGIE","Practicum?",null,null,null,"EC","BIOLOGIE","Practicum?",null,null,null,"EC","BIOLOGIE","Practicum?",null,"DCN-Biological Psychology",null,null,null,null,"Chemisch / Fysisch"]
["NWI-BP027B",6,"Biodiversiteit ","Nee",null,null,"NWI-BB087",6,"Advanced Population and Evolution Biology","Nee",null,null,"NWI-BB020B",6,"Adaptatiefysiologie ","Nee",null,"DCN-Biophysics",null,null,null,null,"Fysisch / Biologisch"]
["NWI-BP003B",6,"Evolutie & ontwikkelingsbiologie van de planten ","Nee",null,null,"NWI-BB079B",3,"Biologie en duurzame ontwikkeling","Nee",null,null,"NWI-BB020B",6,"Adaption Physiology","Nee",null,"DCN-Cognitive Neuroscience/Molecular Neurophysiology"]
["NWI-BP004C",6,"Evolutie en Adaptaties van Dieren ","Nee",null,null,"NWI-BB011B",3,"Biologie en Samenleving ","Nee",null,null,"NWI-BB023B",6,"Animal Cell Biology","Nee",null,"DCN-Neurophysiology"]
["NWI-BP006B",3,"Functionele Cytologie en Histologie ","Nee",null,null,"NWI-BB050C",6,"Conservation Genetics ","Nee",null,null,"NWI-BB027C",6,"Applied and Environmental Microbiology ",1,null,"IMAPP-Astrophysics"]
["NWI-BP011B",6,"Genetica & Populatiegenetica ","Nee",null,null,"NWI-BB060B",6,"Dierecologie ","Nee",null,null,"NWI-BB051B",6,"Applied Bioinformatics ","Nee",null,"IMM-Analytical Chemistry "]
["NWI-BP029B",3,"Geomicrobiologie","Nee",null,null,"NWI-BB005B",6,"Dierfysiologie ",0.5,null,null,"NWI-BB036B",6,"Applied Ecology ","Nee",null,"IMM-Applied Materials Science"]
["NWI-BP019B",3,"Humane biologie ","Nee",null,null,"NWI-BB083B",6,"Ecological Theory and Data Analysis ","Nee",null,null,"NWI-BB017C",6,"Biochemistry and Molecular Biology II ","Nee",null,"IMM-Biomolecular Chemistry"]
["NWI-BP025B",3,"Humane Functionele Histologie ","Nee",null,null,"NWI-BB082B",3,"Environmental Chemistry and Toxicology","Nee",null,null,"NWI-BB070B",3,"Biologie van Micro-organismen ",0.5,null,"IMM-Bio-Organic Chemistry"]
["NWI-BP029C",3,"Microbiologie: Evol., Divers. en Adapt.","Nee",null,null,"NWI-BB040B",6,"Evolutiebiologie","Nee",null,null,"NWI-BB032B",6,"Biotechnology of Plants ",1,null,"IMM-Biophysical Chemistry "]
["NWI-BP029D",6,"Microbiology ","Nee",null,null,"NWI-BB028B",3,"Geschiedenis van de Biologie","Nee",null,null,"NWI-BB085B",6,"Brain and Behaviour","Nee",null,"IMM-Molecular Nanotechnology"]
["NWI-BP010B",6,"Moleculaire Biologie & Recombinant DNA ",1,null,null,"NWI-BB028B",3,"History of Biology ","Nee",null,null,"NWI-BB074B",6,"Brain, dynamics and connectivity","Nee",null,"IMM-Molecular Structure and Dynamics"]
["NWI-BP004B",6,"Ontwikkeling en evolutie in de bouwplannen van dieren","Nee",null,null,"NWI-BB047C",6,"Human Embryology and Developmental Biology ","Nee",null,null,"NWI-BB023B",6,"Celbiologie van Dieren ","Nee",null,"IMM-Physical Organic Chemistry"]
["NWI-BP013B",3,"Organisme en milieu ","Nee",null,null,"NWI-BB025B",6,"Human Pathology","Nee",null,null,"NWI-BB081B",6,"Cognitive Neuroimaging ","Nee",null,"IMM-Scanning Probe Microscopy"]
["NWI-BP026B",3,"Pathobiologie ","Nee",null,null,"NWI-BB025B",6,"Medische pathologie ","Nee",null,null,"NWI-BB060B",6,"Dierecologie","Nee",null,"IMM-Soft condensed matter and nanomaterials in high magnetic fields"]
["NWI-BP015B",3,"Populatie- en evolutiebiologie ","Nee",null,null,"NWI-BB071B",3,"Mens en Milieu ","Nee",null,null,"NWI-BB018C",6,"Ecofysiologie ","Nee",null,"IMM-Solid State Chemistry "]
["NWI-BP012B",3,"Statistiek ","Nee",null,null,"NWI-BB082B",3,"Milieuchemie en toxicologie","Nee",null,null,"NWI-BB018B",6,"Ecofysiologie van Planten","Nee",null,"IMM-Solid State NMR "]
["NWI-BB079C",3,"Water, Health & Development ","Nee",null,null,"NWI-BB021B",6,"Neurobiofysica ","Nee",null,null,"NWI-BB027C",6,"Ecologische microbiologie",1,null,"IMM-Spectroscopy of Solids and Interfaces"]
[null,null,null,null,null,null,"NWI-BB039C",6,"Neurodevelopment ","Nee",null,null,"NWI-BB048B",6,"Endocrinologie ","Nee",null,"IMM-Synthetic Organic Chemistry "]
[null,null,"MOLECULAIR",null,null,null,"NWI-BB061C",6,"Neuropsychologie","Nee",null,null,"NWI-BB064B",6,"Functional Genomics ","Nee",null,"IMM-Theoretical Chemistry "]
["NWI-MOL022",3,"Aspects of molecular life sciences ","Nee",null,null,"NWI-BB063B",6,"Neuroscience: from Basics to Clinic ","Nee",null,null,"NWI-BB086",12,"Genomics for Health and Environment",1,null,"IMM-Theory of Condensed Matter"]
["NWI-MOL008A",6,"Biochemistry","Nee",null,null,"NWI-BB065B",6,"Pathofysiologie van de nier ","Nee",null,null,"NWI-BB043B",12,"Genoomanalyse van planten","Nee",null,"IWWR-Organismal Animal Physiology"]
["NWI-MOL010",6,"Biochemistry Project ",1,null,null,"NWI-BB069B",6,"Plantenfysiologie ",0.5,null,null,"NWI-MB021B",6,"Geographic Information Systems ","Nee",null,"RIMLS-Biochemistry"]
["NWI-MOL021",6,"Cell biophysics project ","Nee",null,null,"NWI-BB077B",3,"Statistiek II ","Nee",null,null,"NWI-BB085B",6,"Hersenen en Gedrag ","Nee",null,"RIMLS-Bioinformatics (CMBI )"]
["NWI-MOL014",3,"Electricity and Magnetism 1A ","Nee",null,null,null,null,null,null,null,null,"NWI-BB078B",3,"Hersenen en gedrag: sensomotoriek","Nee",null,"RIMLS-Cell Biology"]
["NWI-MOL025",3,"Electricity and magnetism 2A","Nee",null,null,null,null,"MOLECULAIR",null,null,null,"NWI-MB024C",6,"Human and Ecological Risk Assessment ","Nee",null,"RIMLS-Molecular Neurogenetics"]
["NWI-MOL077",3,"Energiemetabolismen","Nee",null,null,"NWI-MOL036",3,"Algemene fysiologie ","Nee",null,null,"NWI-BB019B",6,"Immunology ","Nee",null,"RIMLS-Molecular Pharmacology and Toxicology "]
["NWI-MOL020",3,"Environmental Chemistry and Sustainability ","Nee",null,null,"NWI-MOL022",3,"Aspecten van de moleculaire levenswetenschappen","Nee",null,null,"NWI-BB031B",6,"Medische biotechnologie","Nee",null,"RIMLS-Physiology"]
["NWI-MOL024",3,"Fourieranalyse en mechanische golven","Nee",null,null,"NWI-MOL031",3,"Biochemistry in the Living cell ","Nee",null,null,"NWI-BB084B",6,"Molecular Principles of Development ","Nee",null,"RIMLS-Tumorimmunology"]
["NWI-MOL003",3,"Mechanics 1A ","Nee",null,null,"NWI-MOL029",3,"Bioinformatica ","Nee",null,null,"NWI-BB034B",6,"Neurobiology ","Nee"]
["NWI-MOL012",3,"Mechanics 2A ","Nee",null,null,"NWI-MOL075",3,"Bioinformatics A ","Nee",null,null,"NWI-BB080B",6,"Neurophysiology of Cognition and Behaviour ","Nee"]
["NWI-MOL098",3,"Object orientatie ","Nee",null,null,"NWI-MOL043",3,"Bio-inorganic chemistry ","Nee",null,null,"NWI-BB024B",6,"Physiology of Micro organisms ",0.5]
["NWI-MOL006",3,"Project reacties en kinetiek",1,null,null,"NWI-MOL049A",3,"Chemical biology project","Nee",null,null,"NWI-BB043B",6,"Plant Genome Analysis ",1]
["NWI-MOL005",6,"Reactions and Kinetics Project ","Nee",null,null,"NWI-MOL097",3,"Chemical Neuroscience","Nee",null,null,"NWI-BB022B",6,"Systeemecologie ","Nee"]
["NWI-MOL019",3,"Spectroscopic Techniques ","Nee",null,null,"NWI-MOL035",3,"Chemie en samenleving ","Nee",null,null,"NWI-MB023B",6,"Water- en natuurbeheer ","Nee"]
["NWI-MOL018",6,"Thermodynamics Project ",1,null,null,"NWI-MOL030",3,"Coördinatiechemie","Nee"]
[null,null,null,null,null,null,"NWI-MOL032",3,"Crystal Structure ","Nee",null,null,null,null,"MOLECULAIR"]
[null,null,null,null,null,null,"NWI-MOL027",3,"DNA Technology ",0.5,null,null,"NWI-MOL110",3,"Applied Magnetic Resonace","Nee"]
[null,null,"NATUURKUNDE",null,null,null,"NWI-MOL061",3,"Electromagnetisme A","Nee",null,null,"NWI-MOL111",3,"Biophysical Chemistry","Nee"]
["NWI-NP037",6,"Elektriciteit en Magnetisme","Nee",null,null,"NWI-MOL042",3,"Fourier analyse ","Nee",null,null,"NWI-MOL056",3,"Chemische Binding ","Nee"]
["NWI-NP019B",3,"Elektriciteit en Magnetisme 1B ","Nee",null,null,"NWI-MOL042",3,"Fourier analysis","Nee",null,null,"NWI-MOL065",6,"Chemometrics ","Nee"]
["NWI-NP020B",3,"Elektriciteit en Magnetisme 2B ","Nee",null,null,"NWI-MOL039",6,"Fysisch practicum ",1,null,null,"NWI-MOL109",6,"Chemometrics for Molecular Life Sciences ","Nee"]
["NWI-NP029B",3,"Elementaire Deeltjes ","Nee",null,null,"NWI-MOL036",3,"General Physiology","Nee",null,null,"NWI-MOL073",3,"Comparative genomics ","Nee"]
["NWI-NP021D",3,"Golven en Optica ","Nee",null,null,"NWI-MOL038",3,"Genetica ","Nee",null,null,"NWI-MOL050",3,"Condensed Matter ","Nee"]
["NWI-NP022B",3,"Inleiding Kwantummechanica ","Nee",null,null,"NWI-MOL105",3,"Inorganic biochemistry ","Nee",null,null,"NWI-MOL068",3,"Electromagnetisme B","Nee"]
["NWI-NP027B",3,"Inleiding Nanowetenschap en Technologie ","Nee",null,null,"NWI-MOL102",3,"Inorganic Chemistry ","Nee",null,null,"NWI-MOL091",3,"Green Chemistry ","Nee"]
["NWI-NP032B",3,"Inleiding Neuroscience ","Nee",null,null,"NWI-MOL044",3,"Inorganic Chemistry Laboratory ",1,null,null,"NWI-MOL074",3,"Inleiding in de Neuroimaging technieken","Nee"]
["NWI-NP015B",3,"Kaleidoscoop Sterrenkunde ","Nee",null,null,"NWI-MOL016",3,"Lineaire algebra ","Nee",null,null,"NWI-MOL058",3,"Introduction to magnetic resonance","Nee"]
["NWI-NP009C",3,"Lineaire Algebra 1 ","Nee",null,null,"NWI-MOL108",3,"Magnetic Resonance in chemistry ","Nee",null,null,"NWI-MOL071",3,"Kristalgroei ","Nee"]
["NWI-NP010B",3,"Lineaire Algebra 2 ","Nee",null,null,"NWI-MOL045",3,"Microscopic Techniques","Nee",null,null,"NWI-MOL057",6,"Magnetic Resonance ","Nee"]
["NWI-NP011B",3,"Lineaire Algebra 3 ","Nee",null,null,"NWI-MOL045",3,"Microscopische technieken ","Nee",null,null,"NWI-MOL104",6,"Medical biotechnology ","Nee"]
["NWI-NP012B",3,"Lineaire Algebra 4 ","Nee",null,null,"NWI-MOL037",3,"Moleculaire levenswetenschappen & samenleving ","Nee",null,null,"NWI-MOL096",3,"Metal Organic Chemistry ","Nee"]
["NWI-NP011C",3,"Lineaire Algebra NS","Nee",null,null,"NWI-MOL037",3,"Molecular Life Sciences and Society","Nee",null,null,"NWI-MOL055",6,"Molecular Basis of Diseases ","Nee"]
["NWI-NP035",6,"Lineaire Mechanica","Nee",null,null,"NWI-MOL034",3,"Practicum gecondenseerde materie ",1,null,null,"NWI-MOL078",6,"Nanobiotechnology ","Nee"]
["NWI-NP001B",3,"Mechanica 1B ","Nee",null,null,"NWI-MOL081",3,"Practicum NMR",1,null,null,"NWI-MOL095",6,"Organic Chemistry ","Nee"]
["NWI-NP002B",3,"Mechanica 2B ","Nee",null,null,"NWI-MOL033",3,"Programmeren in Matlab ","Nee",null,null,"NWI-MOL048A",6,"Organic chemistry laboratory ",1]
["NWI-NP021C",3,"Mechanische Golven","Nee",null,null,"NWI-MOL085",3,"Programmeren Matlab NW","Nee",null,null,"NWI-MOL053",6,"Pharmacochemistry","Nee"]
["NWI-NP031C",3,"Observationele Sterrenkunde ","Nee",null,null,"NWI-MOL076",3,"Programmeren: Matlab ","Nee",null,null,"NWI-MOL053",6,"Pharmacochemistry ","Nee"]
["NWI-NP033B",3,"Programmeren 1 ","Nee",null,null,"NWI-MOL051",3,"Project spectroscopie ",1,null,null,"NWI-MOL094",3,"Physical organic chemistry","Nee"]
["NWI-NP036",3,"Rotaties en Periodieke Bewegingen","Nee",null,null,"NWI-MOL049",6,"Project synthese biomoleculen",1,null,null,"NWI-MOL094",3,"Physical Organic Chemistry ","Nee"]
["NWI-NP007B",3,"Speciale Relativiteitstheorie ","Nee",null,null,"NWI-MOL041",3,"Quantum mechanics 1 ","Nee",null,null,"NWI-MOL087",3,"Practicum synthese",1]
[null,null,null,null,null,null,"NWI-MOL046",3,"Quantum mechanics 2 ","Nee",null,null,"NWI-MOL087B",3,"Practicum Synthese ",1]
[null,null,"WISKUNDE",null,null,null,"NWI-MOL028",3,"Statistics ","Nee",null,null,"NWI-MOL062",3,"Quantumchemie","Nee"]
["NWI-WP025",6,"Calculus A","Nee",null,null,"NWI-MOL047",3,"Synthesis of Biomolecules ","Nee",null,null,"NWI-MOL107",6,"RNA structure and function ","Nee"]
["NWI-WP026",6,"Calculus B","Nee",null,null,"NWI-MOL040",3,"Thermodynamics 2 ","Nee",null,null,"NWI-MOL082",3,"Single molecule studies ","Nee"]
["NWI-WP023",3,"Datacompressie ","Nee",null,null,null,null,null,null,null,null,"NWI-MOL100",3,"Spectroscopie van biomoleculen ","Nee"]
["NWI-WP013B",3,"Euclidische Meetkunde","Nee",null,null,null,null,"NATUURKUNDE",null,null,null,"NWI-MOL064",3,"Spectroscopy of Atoms and Molecules","Nee"]
["NWI-WP006C",6,"Getallen","Nee",null,null,"NWI-NB001B",3,"Analytische Mechanica ","Nee",null,null,"NWI-MOL064",3,"Spectroscopy of Atoms and Molecules ","Nee"]
["NWI-WP030",6,"Groepentheorie","Nee",null,null,"NWI-NB046C",3,"Chemie en Fysica van de Atmosfeer ","Nee",null,null,"NWI-MOL059",6,"Statistische thermodynamica ","Nee"]
["NWI-WP021",3,"Groepentheorie 1 ","Nee",null,null,"NWI-NB019C",3,"Complexe Functies ","Nee",null,null,"NWI-MOL093",3,"Stereoselective synthesis ","Nee"]
["NWI-WP022",3,"Groepentheorie 2 ","Nee",null,null,"NWI-NB002C",3,"Electromagnetism 1 ","Nee",null,null,"NWI-MOL067",3,"Structuur biomoleculen ","Nee"]
["NWI-WB060B",3,"Inleiding Grafentheorie ","Nee",null,null,"NWI-NB029B",3,"Electronics ","Nee",null,null,"NWI-MOL066",6,"Structuur, functie en bioinformatica ","Nee"]
["NWI-WP020",3,"Inleiding in de Wiskunde ","Nee",null,null,"NWI-NB058B",3,"Exoplaneten","Nee",null,null,"NWI-MOL087A",3,"Synthesis laboratory ",1]
["NWI-WP013C",3,"Inleiding Meetkunde ","Nee",null,null,"NWI-NB017B",3,"Gasdynamica ","Nee",null,null,"NWI-MOL106",3,"Toegepaste Quantumchemie ","Nee"]
["NWI-WP029",6,"Inleiding Wiskunde ","Nee",null,null,"NWI-NB063B",6,"Geschiedenis en Grondslagen van de Kwantummechanica","Nee",null,null,"NWI-MOL054",6,"Toxicology ","Nee"]
["NWI-WP027",6,"Lineaire Algebra A","Nee",null,null,"NWI-NB020B",3,"Inleiding Groepentheorie ","Nee"]
["NWI-WP028",6,"Lineaire Algebra B","Nee",null,null,"NWI-NB046C",3,"Inleiding in de Chemie en Fysica van de Atmosfeer","Nee",null,null,null,null,"NATUURKUNDE"]
["NWI-WP031",3,"Mathematical Models of Population Dynamics","Nee",null,null,"NWI-NB062B",3,"Inleiding Machine Learning ","Nee",null,null,"NWI-NB028C",3,"Atoom- en Molecuulfysica ","Nee"]
["NWI-WP024",3,"P-adische getallen","Nee",null,null,"NWI-NB070B",3,"Interstellair Medium ","Nee",null,null,"NWI-NB003B",3,"Electromagnetism 2 ","Nee"]
["NWI-WP016B",6,"Wat is wiskunde?","Nee",null,null,"NWI-NB004B",3,"Kansrekening ","Nee",null,null,"NWI-NB058C",3,"Exoplaneten/Planetenstelsels ","Nee"]
[null,null,null,null,null,null,"NWI-NB069B",3,"Klimaat en Duurzaamheid","Nee",null,null,"NWI-NB032B",3,"Introduction to General Relativity ","Nee"]
[null,null,"INFORMATICA",null,null,null,"NWI-NB069C",3,"Klimaatverandering: Wetenschap en Beleid","Nee",null,null,"NWI-NB015C",6,"Kwantummechanica 2","Nee"]
["NWI-IPI004",6,"Beweren en Bewijzen ","Nee",null,null,"NWI-NB013B",3,"Kwantummechanica 1a ","Nee",null,null,"NWI-NB016B",6,"Kwantummechanica 3 ","Nee"]
["NWI-IPC024",3,"Databases ","Nee",null,null,"NWI-NB014B",3,"Kwantummechanica 1b ","Nee",null,null,"NWI-NB052B",3,"Nano-electronics ","Nee"]
["NWI-IPI003",6,"Domeinmodellering","Nee",null,null,"NWI-NB015C",6,"Kwantummechanica 2","Nee",null,null,"NWI-NB074B",3,"Neurofysica 2 ","Nee"]
["NWI-IPK001",6,"Formeel Denken","Nee",null,null,"NWI-NB052B",3,"Nano-elektronica","Nee",null,null,"NWI-NB068B",3,"Niet lineaire Dynamica, Chaos en Toepassingen ","Nee"]
["NWI-IPC025",3,"Hacking in C ","Nee",null,null,"NWI-NB044B",3,"Nanofysica ","Nee",null,null,"NWI-NB036B",3,"Psychofysica 1 ","Nee"]
["NWI-IPC031",6,"Imperatief Programmeren ","Nee",null,null,"NWI-NB027B",3,"Neurofysica 1 ","Nee",null,null,"NWI-NB071B",3,"SdM: Atoom en Molecuulfysica ","Nee"]
["NWI-IPC014",3,"Imperatief Programmeren 1 ","Nee",null,null,"NWI-NP024B",3,"Newtoniaanse Kosmologie ","Nee",null,null,"NWI-NB072B",3,"SdM: Solid State Physics ","Nee"]
["NWI-IPC015",3,"Imperatief Programmeren 2 ","Nee",null,null,"NWI-NB068B",3,"Nonlinear dynamics, chaos and applications","Nee",null,null,"NWI-NB073B",3,"SdM: Subatomaire Fysica ","Nee"]
["NWI-IPC017",3,"Matrixrekenen ","Nee",null,null,"NWI-NB066B",3,"Nucleaire Evolutie van het Heelal ","Nee",null,null,"NWI-NB033C",6,"Statistical Mechanics ","Nee"]
["NWI-IPC019",3,"Modelleren ","Nee",null,null,"NWI-NP031C",3,"Observationele Sterrenkunde","Nee",null,null,"NWI-NB057B",3,"Sterrenstelsels ","Nee"]
["NWI-IPC012",3,"Modelleren en Redeneren","Nee",null,null,"NWI-NB042B",3,"Optica: de manipulatie van licht ","Nee",null,null,"NWI-NB060A",3,"Stralingsprocesssen ","Nee"]
["NWI-IPK007",3,"Modelleren van Bedrijfsprocessen","Nee",null,null,"NWI-NB007C",6,"Practicum Natuurkunde 2a ",1,null,null,"NWI-NB034B",3,"Subatomaire Fysica ","Nee"]
["NWI-IPI005",6,"Object-Oriëntatie ","Nee",null,null,"NWI-NB008D",6,"Practicum Natuurkunde 2b ",1,null,null,"NWI-NB067C",3,"Surface Physics ","Nee"]
["NWI-IPC007",3,"Processen","Nee",null,null,"NWI-NB065B",3,"Practicum Natuurkunde 2c ",1,null,null,"NWI-NB067B",3,"Vaste stoffysica","Nee"]
["NWI-IPC006",3,"Processoren ","Nee",null,null,"NWI-NB021C",3,"Programmeren 2","Nee"]
["NWI-IBK101",3,"Programming for AI 1","Nee",null,null,"NWI-NB930B",3,"Radio Astronomy ","Nee",null,null,null,null,"WISKUNDE"]
["NWI-IBK102",3,"Programming for AI 2","Nee",null,null,"NWI-NB059C",3,"Space Astronomy ","Nee",null,null,"NWI-WB001B",6,"Analyse 2 ","Nee"]
["NWI-IPK010",3,"Requirement Engineering 1","Nee",null,null,"NWI-NB054D",6,"Statistical Machine Learning","Nee",null,null,"NWI-WB064B",6,"Applied Stochastics","Nee"]
["NWI-IPC023",3,"Requirements Engineering ","Nee",null,null,"NWI-NB012B",3,"Sterevolutie ","Nee",null,null,"NWI-WB066C",6,"Axiomatische Verzamelingenleer","Nee"]
["NWI-IPI006",6,"Research & Development 1","Nee",null,null,"NWI-NB031B",3,"Tensoren en Toepassingen","Nee",null,null,"NWI-WB084",6,"C","Nee"]
["NWI-IPC029",6,"Research & Development: Project ","Nee",null,null,"NWI-NB031B",3,"Tensors and Applications","Nee",null,null,"NWI-WB083",6,"Categorieën en Homologische Algebra","Nee"]
["NWI-IBI002",6,"Security","Nee",null,null,"NWI-NB006B",3,"Trillingen en Golven ","Nee",null,null,"NWI-WB075B",6,"Convexiteit","Nee"]
["NWI-IPC021",6,"Security ","Nee",null,null,null,null,null,null,null,null,"NWI-WB079B",6,"Differential Topology","Nee"]
["NWI-IPC013",3,"Transformeren en Implementeren","Nee",null,null,null,null,"WISKUNDE",null,null,null,"NWI-WB073B",3,"Eindig-dimensionale algebra's","Nee"]
["NWI-IPC018",3,"Wat is informatica ","Nee",null,null,"NWI-WP001B",6,"Analyse 1 ","Nee",null,null,"NWI-WB068B",6,"Galoistheorie","Nee"]
["NWI-IPC026",3,"Web Security ","Nee",null,null,"NWI-WB077B",3,"Beroemde problemen in de wiskunde ","Nee",null,null,"NWI-WB069B",6,"Getaltheorie","Nee"]
["NWI-IPC020",3,"Wiskundige Structuren ","Nee",null,null,"NWI-WB052B",3,"Cryptografie ","Nee",null,null,"NWI-WB086",6,"Groepen en Representaties","Nee"]
["NWI-IPC020",3,"Wiskundige Structuren ","Nee",null,null,"NWI-WB010B",3,"Discrete Wiskunde 1","Nee",null,null,"NWI-WB036B",6,"Groepen in actie","Nee"]
[null,null,null,null,null,null,"NWI-WB011D",3,"Discrete Wiskunde 2","Nee",null,null,"NWI-WB063B",6,"Inleiding Algebraïsche Meetkunde","Nee"]
[null,null,null,null,null,null,"NWI-WB085",6,"Financial Mathematics","Nee",null,null,"NWI-WB062B",6,"Inleiding Functionaal Analyse ","Nee"]
[null,null,null,null,null,null,"NWI-WB003E",3,"Gewone Differentiaalvergelijkingen ","Nee",null,null,"NWI-WB082",6,"Inleiding Mathematische Fysica ","Nee"]
[null,null,null,null,null,null,"NWI-WB019C",6,"History of Mathematics","Nee",null,null,"NWI-WB046B",6,"Inleiding Partiële Differentiaalvergelijkingen","Nee"]
[null,null,null,null,null,null,"NWI-WB049B",3,"Inleiding Fouriertheorie ","Nee",null,null,"NWI-WB074B",6,"Knopentheorie","Nee"]
[null,null,null,null,null,null,"NWI-WB007B",3,"Inleiding Statistiek ","Nee",null,null,"NWI-WB008C",6,"Logica","Nee"]
[null,null,null,null,null,null,"NWI-WB070B",6,"Intuïtionistische Wiskunde","Nee",null,null,"NWI-WB009B",3,"Logica 2","Nee"]
[null,null,null,null,null,null,"NWI-WB056B",3,"Kepler en Newton in historisch perspectief ","Nee",null,null,"NWI-WB023B",6,"Maat en Integraal","Nee"]
[null,null,null,null,null,null,"NWI-WB061B",3,"Krommen en Oppervlakken ","Nee",null,null,"NWI-WB079C",6,"Manifolds","Nee"]
[null,null,null,null,null,null,"NWI-WB044C",3,"Lineair programmeren","Nee",null,null,"NWI-WM036B",6,"Model Thoery","Nee"]
[null,null,null,null,null,null,"NWI-WB008B",3,"Logica 1","Nee",null,null,"NWI-WB025C",6,"Modellenpracticum ","Nee"]
[null,null,null,null,null,null,"NWI-WB091",3,"Modular Forms","Nee",null,null,"NWI-NM066C",3,"Numerical Methods","Nee"]
[null,null,null,null,null,null,"NWI-NM066C",3,"Numerical Methods","Nee",null,null,"NWI-WB076B",3,"Representaties van eindige groepen ","Nee"]
[null,null,null,null,null,null,"NWI-WB090",6,"Portfolio Theory","Nee",null,null,"NWI-WB012B",6,"Ringen en Lichamen ","Nee"]
[null,null,null,null,null,null,"NWI-WB012C",3,"Ringen en Lichamen 1","Nee",null,null,"NWI-WB013B",3,"Ringen en Lichamen 2","Nee"]
[null,null,null,null,null,null,"NWI-WB006C",3,"Voortgezette Kansrekening","Nee",null,null,"NWI-WB004B",6,"Symmetrie","Nee"]
[null,null,null,null,null,null,"NWI-WB057B",3,"Wiskunde, Politiek en Economie","Nee",null,null,"NWI-WB088",6,"Theory of Measure","Nee"]
[null,null,null,null,null,null,null,null,null,null,null,null,"NWI-WB089",6,"Theory of Numbers","Nee"]
[null,null,null,null,null,null,null,null,null,null,null,null,"NWI-WB064B",6,"Toegepaste Stochastiek","Nee"]
[null,null,null,null,null,null,null,null,"INFORMATICA",null,null,null,"NWI-WB072B",6,"Topics in Complex Analysis","Nee"]
[null,null,null,null,null,null,"NWI-IBC001",3,"Algoritmen en Datastructuren","Nee",null,null,"NWI-WB027B",6,"Topologie ","Nee"]
[null,null,null,null,null,null,"NWI-IBC027",6,"Algoritmen en Datastructuren ","Nee",null,null,"NWI-WB050C",6,"Tralietheorie","Nee"]
[null,null,null,null,null,null,"NWI-IBK008",3,"Architectuur Digitale Wereld","Nee",null,null,"NWI-WB058B",6,"Universele algebra","Nee"]
[null,null,null,null,null,null,"NWI-IBK008",3,"Architectuur in de digitale wereld","Nee",null,null,"NWI-WB006C",3,"Voortgezette Kansrekening ","Nee"]
[null,null,null,null,null,null,"NWI-IBC003",3,"Berekenbaarheid ","Nee",null,null,"NWI-WB041B",3,"Voortgezette Statistiek ","Nee"]
[null,null,null,null,null,null,"NWI-IBC016",3,"Combinatoriek ","Nee"]
[null,null,null,null,null,null,"NWI-IBI005",6,"Community Outreach Project ","Nee",null,null,null,null,"INFORMATICA"]
[null,null,null,null,null,null,"NWI-IBI008",6,"Data Mining ","Nee",null,null,"NWI-IBC013",3,"Analyse van algoritmen","Nee"]
[null,null,null,null,null,null,"NWI-IBC018",3,"Discrete Structuren","Nee",null,null,"NWI-IBC025",3,"Berekeningsmodellen","Nee"]
[null,null,null,null,null,null,"NWI-IBC015",3,"Functional Programming for AI","Nee",null,null,"NWI-IBC025",3,"Berekeningsmodellen ","Nee"]
[null,null,null,null,null,null,"NWI-IBC006",6,"Functioneel Programmeren","Nee",null,null,"NWI-IBC036",6,"Big Data","Nee"]
[null,null,null,null,null,null,"NWI-IBC029",3,"Functioneel Programmeren 1 ","Nee",null,null,"NWI-IBC036",6,"Big Data ","Nee"]
[null,null,null,null,null,null,"NWI-IBC030",3,"Functioneel Programmeren 2 ","Nee",null,null,"NWI-IBC004",3,"Complexiteit","Nee"]
[null,null,null,null,null,null,"NWI-I00036",3,"ICT en Samenleving ","Nee",null,null,"NWI-IBC028",3,"Complexiteit ","Nee"]
[null,null,null,null,null,null,"NWI-IBK003",3,"ICT infrastructuren","Nee",null,null,"NWI-IBC010",6,"Geheugen, distributie en netwerken","Nee"]
[null,null,null,null,null,null,"NWI-IBC020",3,"Informatiesystemen ","Nee",null,null,"NWI-IBC021",6,"Netwerken en Gedistribueerde Systemen ","Nee"]
[null,null,null,null,null,null,"NWI-IBI003",6,"Informatiesystemen (IS1)","Nee",null,null,"NWI-IBC022",3,"Network Security ","Nee"]
[null,null,null,null,null,null,"NWI-IBC023",6,"Introduction to Cryptography ","Nee",null,null,"NWI-IBI007",3,"Onderzoeksmethoden 1 ","Nee"]
[null,null,null,null,null,null,"NWI-IBC031",3,"New Devices Lab ","Nee",null,null,"NWI-IBC039",6,"Organizing Cyber Security ","Nee"]
[null,null,null,null,null,null,"NWI-IBI007",3,"Onderzoeksmethoden 1","Nee",null,null,"NWI-IBC038",3,"Privacy and Identity ","Nee"]
[null,null,null,null,null,null,"NWI-IBC019",3,"Operating Systems ","Nee",null,null,"NWI-IBC005",3,"Research & Development Informatica 2","Nee"]
[null,null,null,null,null,null,"NWI-IBC034",3,"Operating Systems Security ","Nee",null,null,"NWI-IBC012",3,"Semantics of Logic Programming","Nee"]
[null,null,null,null,null,null,"NWI-IBC037",3,"Recht voor informatici ","Nee",null,null,"NWI-IBC008",6,"Semantiek en Correctheid","Nee"]
[null,null,null,null,null,null,"NWI-IBC024",3,"Software Verificatie ","Nee",null,null,"NWI-IBC026",3,"Semantiek en Correctheid ","Nee"]
[null,null,null,null,null,null,"NWI-IBK007",3,"Statistiek voor Informatiekunde","Nee",null,null,"NWI-IBI001",6,"Software Engineering ","Nee"]

{"sheet":"Printen","index":3,"n_rows":140,"n_cols":8,"rows_kept":140,"cut":false,"hidden":false,"merged":[[27,1,27,4],[27,5,27,7],[3,1,3,4],[12,1,12,4],[12,5,12,7],[22,1,23,4],[22,5,23,7],[44,1,44,4],[44,5,44,7],[54,1,54,4],[54,5,54,7],[75,1,75,4],[75,5,75,7],[111,4,111,5],[111,6,111,7],[117,1,117,5],[95,1,95,4],[95,5,95,7],[103,1,103,4],[103,5,103,7],[109,1,109,5],[110,6,110,7]]}
[]
[null,"Aanvraag goedkeuring bachelorprogramma Science"]
[null,"Cohorten 2011, 2012, 2013, 2014, 2015, 2016"]
[]
[]
[]
[null,"Naam:"]
[null,"Studentnummer: "]
[null,"E-mail:"]
[null,"Telefoon:"]
[null,"Startjaar Studie:"]
[]
[null,"Verplichte cursussen (21 EC)",null,null,null,"Aanpassingen aan de verplichte ruimte:"]
[null,"Code","Cursus naam","EC","Bijz.","Code","Cursus","EC"]
[null,"NWI-MOL092","Panorama science: Energy",6,"Nee"]
[null,"NWI-MOL099","Panorama science: Health and food",6,"Nee"]
[null,"NWI-FCEM02B","Schrijfvaardigheid",3,"Nee"]
[null,"NWI-FFIL100/101","Inleiding Filosofie en Ethiek",3,"Nee"]
[null,"NWI-MOL086","Academische Vorming",3,"Nee"]
[null,null,"Totaal:",21]
[]
[]
[null,"Kies minor (optioneel):"]
[]
[]
[]
[]
[null,"Minor (15-30 EC)",null,null,null,"Aanpassingen aan de minor:"]
[null,"Code","Cursus naam","EC","Bijz.","Code","Cursus","EC"]
[]
[]
[]
[]
[]
[]
[]
[]
[]
[]
[]
[null,null,"Totaal:",0]
[]
[]
[]
[null,"Niveau 1 cursussen (maximaal 15 EC)",null,null,null,"Aanpassingen aan de cursussen:"]
[null,"Code","Cursus naam (klik voor een keuzelijst)","EC","Bijz.","Code","Cursus","EC"]
[null,{"$f":"INDEX('Niveau-indeling vakken'!A:A,MATCH(Examenprogramma!C47,niveau_1,0))","v":""},"Kies een cursus",{"$f":"INDEX('Niveau-indeling vakken'!B:B,MATCH(Examenprogramma!C47,niveau_1,0))","v":""},"Nee"]
[null,{"$f":"INDEX('Niveau-indeling vakken'!A:A,MATCH(Examenprogramma!C48,niveau_1,0))","v":""},"Kies een cursus",{"$f":"INDEX('Niveau-indeling vakken'!B:B,MATCH(Examenprogramma!C48,niveau_1,0))","v":""},"Nee"]
[null,{"$f":"INDEX('Niveau-indeling vakken'!A:A,MATCH(Examenprogramma!C49,niveau_1,0))","v":""},"Kies een cursus",{"$f":"INDEX('Niveau-indeling vakken'!B:B,MATCH(Examenprogramma!C49,niveau_1,0))","v":""},"Nee"]
[null,{"$f":"INDEX('Niveau-indeling vakken'!A:A,MATCH(Examenprogramma!C50,niveau_1,0))","v":""},"Kies een cursus",{"$f":"INDEX('Niveau-indeling vakken'!B:B,MATCH(Examenprogramma!C50,niveau_1,0))","v":""},"Nee"]
[null,{"$f":"INDEX('Niveau-indeling vakken'!A:A,MATCH(Examenprogramma!C51,niveau_1,0))","v":""},"Kies een cursus",{"$f":"INDEX('Niveau-indeling vakken'!B:B,MATCH(Examenprogramma!C51,niveau_1,0))","v":""},"Nee"]
[null,{"$f":"INDEX('Niveau-indeling vakken'!A:A,MATCH(Examenprogramma!C52,niveau_1,0))","v":""},"Kies een cursus",{"$f":"INDEX('Niveau-indeling vakken'!B:B,MATCH(Examenprogramma!C52,niveau_1,0))","v":""},"Nee"]
[null,null,"Totaal:",0]
[]
[null,"Niveau 2 cursussen",null,null,null,"Aanpassingen aan de cursussen;"]
[null,"Code","Cursus naam (klik voor een keuzelijst)","EC","Bijz.","Code","Cursus","EC"]
[null,{"$f":"INDEX('Niveau-indeling vakken'!G:G,MATCH(Examenprogramma!C57,niveau_2,0))","v":""},"Kies een cursus",{"$f":"INDEX('Niveau-indeling vakken'!H:H,MATCH(Examenprogramma!C57,niveau_2,0))","v":""},"Nee"]
[null,{"$f":"INDEX('Niveau-indeling vakken'!G:G,MATCH(Examenprogramma!C58,niveau_2,0))","v":""},"Kies een cursus",{"$f":"INDEX('Niveau-indeling vakken'!H:H,MATCH(Examenprogramma!C58,niveau_2,0))","v":""},"Nee"]
[null,{"$f":"INDEX('Niveau-indeling vakken'!G:G,MATCH(Examenprogramma!C59,niveau_2,0))","v":""},"Kies een cursus",{"$f":"INDEX('Niveau-indeling vakken'!H:H,MATCH(Examenprogramma!C59,niveau_2,0))","v":""},"Nee"]
[null,{"$f":"INDEX('Niveau-indeling vakken'!G:G,MATCH(Examenprogramma!C60,niveau_2,0))","v":""},"Kies een cursus",{"$f":"INDEX('Niveau-indeling vakken'!H:H,MATCH(Examenprogramma!C60,niveau_2,0))","v":""},"Nee"]
[null,{"$f":"INDEX('Niveau-indeling vakken'!G:G,MATCH(Examenprogramma!C61,niveau_2,0))","v":""},"Kies een cursus",{"$f":"INDEX('Niveau-indeling vakken'!H:H,MATCH(Examenprogramma!C61,niveau_2,0))","v":""},"Nee"]
[null,{"$f":"INDEX('Niveau-indeling vakken'!G:G,MATCH(Examenprogramma!C62,niveau_2,0))","v":""},"Kies een cursus",{"$f":"INDEX('Niveau-indeling vakken'!H:H,MATCH(Examenprogramma!C62,niveau_2,0))","v":""},"Nee"]
[null,{"$f":"INDEX('Niveau-indeling vakken'!G:G,MATCH(Examenprogramma!C63,niveau_2,0))","v":""},"Kies een cursus",{"$f":"INDEX('Niveau-indeling vakken'!H:H,MATCH(Examenprogramma!C63,niveau_2,0))","v":""},"Nee"]
[null,{"$f":"INDEX('Niveau-indeling vakken'!G:G,MATCH(Examenprogramma!C64,niveau_2,0))","v":""},"Kies een cursus",{"$f":"INDEX('Niveau-indeling vakken'!H:H,MATCH(Examenprogramma!C64,niveau_2,0))","v":""},"Nee"]
[null,{"$f":"INDEX('Niveau-indeling vakken'!G:G,MATCH(Examenprogramma!C65,niveau_2,0))","v":""},"Kies een cursus",{"$f":"INDEX('Niveau-indeling vakken'!H:H,MATCH(Examenprogramma!C65,niveau_2,0))","v":""},"Nee"]
[null,{"$f":"INDEX('Niveau-indeling vakken'!G:G,MATCH(Examenprogramma!C66,niveau_2,0))","v":""},"Kies een cursus",{"$f":"INDEX('Niveau-indeling vakken'!H:H,MATCH(Examenprogramma!C66,niveau_2,0))","v":""},"Nee"]
[null,{"$f":"INDEX('Niveau-indeling vakken'!G:G,MATCH(Examenprogramma!C67,niveau_2,0))","v":""},"Kies een cursus",{"$f":"INDEX('Niveau-indeling vakken'!H:H,MATCH(Examenprogramma!C67,niveau_2,0))","v":""},"Nee"]
[null,{"$f":"INDEX('Niveau-indeling vakken'!G:G,MATCH(Examenprogramma!C68,niveau_2,0))","v":""},"Kies een cursus",{"$f":"INDEX('Niveau-indeling vakken'!H:H,MATCH(Examenprogramma!C68,niveau_2,0))","v":""},"Nee"]
[null,{"$f":"INDEX('Niveau-indeling vakken'!G:G,MATCH(Examenprogramma!C69,niveau_2,0))","v":""},"Kies een cursus",{"$f":"INDEX('Niveau-indeling vakken'!H:H,MATCH(Examenprogramma!C69,niveau_2,0))","v":""},"Nee"]
[null,{"$f":"INDEX('Niveau-indeling vakken'!G:G,MATCH(Examenprogramma!C70,niveau_2,0))","v":""},"Kies een cursus",{"$f":"INDEX('Niveau-indeling vakken'!H:H,MATCH(Examenprogramma!C70,niveau_2,0))","v":""},"Nee"]
[null,{"$f":"INDEX('Niveau-indeling vakken'!G:G,MATCH(Examenprogramma!C71,niveau_2,0))","v":""},"Kies een cursus",{"$f":"INDEX('Niveau-indeling vakken'!H:H,MATCH(Examenprogramma!C71,niveau_2,0))","v":""},"Nee"]
[null,{"$f":"INDEX('Niveau-indeling vakken'!G:G,MATCH(Examenprogramma!C72,niveau_2,0))","v":""},"Kies een cursus",{"$f":"INDEX('Niveau-indeling vakken'!H:H,MATCH(Examenprogramma!C72,niveau_2,0))","v":""},"Nee"]
[null,null,"Totaal:",0]
[]
[]
[null,"Niveau 3 cursussen (minstens 30 EC)",null,null,null,"Aanpassingen aan de cursussen:"]
[null,"Code","Cursus naam (klik voor een keuzelijst)","EC","Bijz.","Code","Cursus","EC"]
[null,{"$f":"INDEX('Niveau-indeling vakken'!M:M,MATCH(Examenprogramma!C77,niveau_3,0))","v":""},"Kies een cursus",{"$f":"INDEX('Niveau-indeling vakken'!N:N,MATCH(Examenprogramma!C77,niveau_3,0))","v":""},"Nee"]
[null,{"$f":"INDEX('Niveau-indeling vakken'!M:M,MATCH(Examenprogramma!C78,niveau_3,0))","v":""},"Kies een cursus",{"$f":"INDEX('Niveau-indeling vakken'!N:N,MATCH(Examenprogramma!C78,niveau_3,0))","v":""},"Nee"]
[null,{"$f":"INDEX('Niveau-indeling vakken'!M:M,MATCH(Examenprogramma!C79,niveau_3,0))","v":""},"Kies een cursus",{"$f":"INDEX('Niveau-indeling vakken'!N:N,MATCH(Examenprogramma!C79,niveau_3,0))","v":""},"Nee"]
[null,{"$f":"INDEX('Niveau-indeling vakken'!M:M,MATCH(Examenprogramma!C80,niveau_3,0))","v":""},"Kies een cursus",{"$f":"INDEX('Niveau-indeling vakken'!N:N,MATCH(Examenprogramma!C80,niveau_3,0))","v":""},"Nee"]
[null,{"$f":"INDEX('Niveau-indeling vakken'!M:M,MATCH(Examenprogramma!C81,niveau_3,0))","v":""},"Kies een cursus",{"$f":"INDEX('Niveau-indeling vakken'!N:N,MATCH(Examenprogramma!C81,niveau_3,0))","v":""},"Nee"]
[null,{"$f":"INDEX('Niveau-indeling vakken'!M:M,MATCH(Examenprogramma!C82,niveau_3,0))","v":""},"Kies een cursus",{"$f":"INDEX('Niveau-indeling vakken'!N:N,MATCH(Examenprogramma!C82,niveau_3,0))","v":""},"Nee"]
[null,{"$f":"INDEX('Niveau-indeling vakken'!M:M,MATCH(Examenprogramma!C83,niveau_3,0))","v":""},"Kies een cursus",{"$f":"INDEX('Niveau-indeling vakken'!N:N,MATCH(Examenprogramma!C83,niveau_3,0))","v":""},"Nee"]
[null,{"$f":"INDEX('Niveau-indeling vakken'!M:M,MATCH(Examenprogramma!C84,niveau_3,0))","v":""},"Kies een cursus",{"$f":"INDEX('Niveau-indeling vakken'!N:N,MATCH(Examenprogramma!C84,niveau_3,0))","v":""},"Nee"]
[null,{"$f":"INDEX('Niveau-indeling vakken'!M:M,MATCH(Examenprogramma!C85,niveau_3,0))","v":""},"Kies een cursus",{"$f":"INDEX('Niveau-indeling vakken'!N:N,MATCH(Examenprogramma!C85,niveau_3,0))","v":""},"Nee"]
[null,{"$f":"INDEX('Niveau-indeling vakken'!M:M,MATCH(Examenprogramma!C86,niveau_3,0))","v":""},"Kies een cursus",{"$f":"INDEX('Niveau-indeling vakken'!N:N,MATCH(Examenprogramma!C86,niveau_3,0))","v":""},"Nee"]
[null,{"$f":"INDEX('Niveau-indeling vakken'!M:M,MATCH(Examenprogramma!C87,niveau_3,0))","v":""},"Kies een cursus",{"$f":"INDEX('Niveau-indeling vakken'!N:N,MATCH(Examenprogramma!C87,niveau_3,0))","v":""},"Nee"]
[null,{"$f":"INDEX('Niveau-indeling vakken'!M:M,MATCH(Examenprogramma!C88,niveau_3,0))","v":""},"Kies een cursus",{"$f":"INDEX('Niveau-indeling vakken'!N:N,MATCH(Examenprogramma!C88,niveau_3,0))","v":""},"Nee"]
[null,{"$f":"INDEX('Niveau-indeling vakken'!M:M,MATCH(Examenprogramma!C89,niveau_3,0))","v":""},"Kies een cursus",{"$f":"INDEX('Niveau-indeling vakken'!N:N,MATCH(Examenprogramma!C89,niveau_3,0))","v":""},"Nee"]
[null,{"$f":"INDEX('Niveau-indeling vakken'!M:M,MATCH(Examenprogramma!C90,niveau_3,0))","v":""},"Kies een cursus",{"$f":"INDEX('Niveau-indeling vakken'!N:N,MATCH(Examenprogramma!C90,niveau_3,0))","v":""},"Nee"]
[null,{"$f":"INDEX('Niveau-indeling vakken'!M:M,MATCH(Examenprogramma!C91,niveau_3,0))","v":""},"Kies een cursus",{"$f":"INDEX('Niveau-indeling vakken'!N:N,MATCH(Examenprogramma!C91,niveau_3,0))","v":""},"Nee"]
[null,{"$f":"INDEX('Niveau-indeling vakken'!M:M,MATCH(Examenprogramma!C92,niveau_3,0))","v":""},"Kies een cursus",{"$f":"INDEX('Niveau-indeling vakken'!N:N,MATCH(Examenprogramma!C92,niveau_3,0))","v":""},"Nee"]
[null,null,"Totaal:",0]
[]
[null,"Practica (minimaal één)",null,null,null,"Aanpassingen aan de cursussen:"]
[null,"Code","Cursus naam","EC","Bijz.","Code","Cursus","EC"]
[null,null,null,null,"Nee"]
[null,null,null,null,"Nee"]
[null,null,null,null,"Nee"]
[null,null,null,null,"Nee"]
[null,null,"Totaal:",0]
[]
[null,"Vrije keuze (6 EC universitaire cursussen)",null,null,null,"Aanpassingen aan de vrije keuze:"]
[null,"Code","Cursus naam","EC","Bijz.","Code","Cursus","EC"]
[null,null,null,null,"Nee"]
[null,null,null,null,"Nee"]
[null,null,"Totaal:",0]
[]
[null,"Bachelorstage (NWI-MOL200) (12 EC)"]
[null,"Docent","Afdeling","EC",null,"2e beoordelaar","Extern? (zo jaar waar, en jouw begeleider daar)"]
[null,null,"Kies: stageafdeling",12]
[null,null,"Totaal:",12]
[]
[]
[null,null,"Totaal:",33]
[]
[null,"Extra-curriculair (bovenop de 120 ec)"]
[]
[]
[null,"Code","Cursus naam","EC"]
[]
[]
[]
[]
[]
[]
[]
[]
[]
[]
[]
[]
[]
[null,null,"Totaal:",0]
[]
[]
[null,null,"Absoluut totaal:",33]
[]
[null,"OPMERKINGEN:"]

{"sheet":"Temp Stuff","index":4,"n_rows":29,"n_cols":3,"rows_kept":29,"cut":false,"hidden":true,"merged":[]}
[]
[]
[]
[]
[]
[]
[]
[]
[]
[]
[]
[]
[]
[]
[]
[]
["NWI-WB008C",null,"Logica "]
["NWI-WB011C",null,"Discrete Wiskunde "]
["NWI-WB012B",null,"Ringen en Lichamen "]
[]
["NWI-WB045C",null,"Differentiaalmeetkunde "]
[]
["NWI-WB079C",null,"Manifolds "]
["NWI-WB086",null,"Groepen en Representaties "]
["NWI-WB087",null,"Game Theory "]
["NWI-WB088",null,"Maattheorie "]
["NWI-WB089",null,"Getaltheorie "]
["NWI-WB090",null,"Portfolio Theory "]
["NWI-WB091",null,"Modular Forms "]